bitfinex-derivatives/quotes_ETHF0:USTF0_20250612
["timestamp","ask_amount","ask_price","bid_price","bid_amount"]
[1749735161969,0.00548206,2737.4,2737.3,0.73052]
[1749735162468,0.73055,2737.3,2737.2,24.17054]
[1749735162865,0.73055,2737.2,2737.1,40.8620172]
[1749735163069,1.82633,2737.3,2736.1,3.2078]
[1749735163276,3.2078,2736.9,2736.3,0.5893]
[1749735163477,0.73072,2736.6,2736.5,0.73073]
[1749735163669,0.7307,2736.7,2736.4,40.8]
[1749735163871,0.73069,2736.7,2736.4,44.0078]
[1749735164066,0.73066,2736.8,2736.4,44.0078]
[1749735164272,0.73073,2736.5,2736.4,40.8]
[1749735164672,0.73072,2736.6,2736.4,40.8]
[1749735164971,0.7307,2736.7,2736.5,0.73072]
[1749735165268,0.7307,2736.7,2736.6,0.73071]
[1749735165472,3.2078,2736.9,2736.6,0.73068]
[1749735165673,0.73071,2736.6,2736.5,0.73072]
[1749735165974,0.73073,2736.5,2736.4,40.8]
[1749735167073,0.73073,2736.6,2736.4,40.8]
[1749735167272,0.73073,2736.5,2736.4,40.8]
[1749735167470,3.2078,2736.6,2736.4,40.8]
[1749735167471,0.6094,2736.6,2736.4,40.8]
[1749735167668,0.73073,2736.5,2736.4,40.8]
[1749735167872,3.93853,2736.5,2736.4,40.8]
[1749735168177,8.2078,2736.5,2735.4,3.2078]
[1749735168373,0.73099,2735.6,2735.4,3.2078]
[1749735168677,3.2078,2736.1,2735.5,40.8]
[1749735168979,0.73093,2735.8,2735.6,0.73095]
[1749735169171,0.73097,2735.7,2735.5,42.15118]
[1749735169368,0.73097,2735.6,2735.5,41.4202]
[1749735169572,0.73097,2735.6,2735.5,40.8]
[1749735169778,0.73095,2735.7,2735.5,40.8]
[1749735170077,0.73097,2735.6,2735.5,40.8]
[1749735170377,3.2078,2735.8,2735.5,40.8]
[1749735170671,0.73097,2735.6,2735.5,40.8]
[1749735171880,1.97397,2735.6,2735.5,40.8]
[1749735172272,0.73103,2735.4,2735.3,0.00548206]
[1749735172478,3.93883,2735.4,2735.3,0.00548206]
[1749735172873,5.78853,2735.4,2735.3,0.00548206]
[1749735173078,0.73119,2734.8,2734.7,0.6153]
[1749735173278,1.82785,2735.0,2734.7,40.8]
[1749735173581,0.73119,2734.8,2734.7,40.8]
[1749735173779,3.93899,2734.8,2734.7,40.8]
[1749735174270,0.73124,2734.6,2734.5,0.00548206]
[1749735174869,0.73138,2734.1,2734.0,3.2078]
[1749735175483,0.73138,2734.1,2734.0,44.0078]
[1749735175780,3.2078,2734.4,2734.0,44.0078]
[1749735175981,6.442,2734.3,2734.0,44.0078]
[1749735176176,0.73138,2734.1,2734.0,40.8]
[1749735176986,0.7314,2734.0,2733.9,0.00365262]
[1749735177185,1.3508,2734.0,2733.9,0.00365262]
[1749735177383,1.3508,2734.0,2733.9,40.80365262]
[1749735177983,1.3508,2734.0,2733.9,0.00365262]
[1749735178185,0.73162,2733.2,2733.1,3.2078]
[1749735178485,0.73162,2733.2,2733.1,40.87317697]
[1749735178985,8.2078,2733.2,2732.0,3.2078]
[1749735179177,0.29300099,2733.3,2732.2,3.2078]
[1749735179178,3.21328206,2732.9,2732.2,3.2078]
[1749735179379,0.00548206,2732.9,2732.3,44.0809984]
[1749735179584,0.00548206,2732.9,2732.4,1.27469572]
[1749735179888,0.00548206,2732.9,2732.8,0.73172]
[1749735181179,0.00548206,2732.9,2732.7,1.2015]
[1749735181381,0.7318,2732.5,2732.4,0.07319572]
[1749735181579,0.00548206,2732.9,2732.4,0.80500572]
[1749735181787,0.73720206,2732.9,2732.7,0.73175]
[1749735181977,0.73719206,2732.9,2732.7,0.73174]
[1749735182181,0.00548206,2732.9,2732.8,1.93322]
[1749735183078,0.3409,2733.1,2733.0,0.73167]
[1749735183683,0.3409,2733.1,2733.0,1.93277]
[1749735184079,6.445,2733.6,2733.0,1.93277]
[1749735184080,3.2078,2733.9,2733.2,0.73162]
[1749735184281,0.73147,2733.8,2733.7,0.73147]
[1749735184488,0.73144,2733.9,2733.8,0.73146]
[1749735184688,0.73143,2733.9,2733.8,1.93255]
[1749735185089,6.45148206,2734.1,2733.8,1.2011]
[1749735185287,0.73143,2733.9,2733.8,1.93253]
[1749735185589,6.45148206,2734.1,2733.8,1.2011]
[1749735185788,0.73143,2733.9,2733.8,1.2011]
[1749735186090,7.18287206,2734.1,2733.8,1.2011]
[1749735186386,7.18287206,2734.1,2734.0,3.9392]
[1749735186387,0.00548206,2734.1,2734.0,3.9392]
[1749735186883,0.00548206,2734.1,2734.0,10.3852]
[1749735187082,0.00548206,2734.1,2734.0,51.1852]
[1749735187287,3.2078,2734.6,2734.0,50.4538]
[1749735187483,3.2078,2734.6,2734.5,0.73127]
[1749735188083,0.6233,2735.1,2734.2,25.40434]
[1749735188285,0.73115,2735.0,2734.4,0.00548206]
[1749735188581,0.00548206,2735.0,2734.9,0.73116]
[1749735189185,1.0102,2735.4,2735.3,0.73106]
[1749735189186,0.3916,2735.4,2735.3,0.73106]
[1749735189393,0.46471544,2735.4,2735.3,3.93886]
[1749735189684,0.07311544,2735.4,2735.3,3.93886]
[1749735189895,0.07311544,2735.4,2735.3,5.78336]
[1749735190087,0.80414544,2735.4,2735.3,1.8445]
[1749735190389,1.82765,2735.3,2734.8,0.73117]
[1749735190586,0.73116,2734.9,2734.8,1.2537]
[1749735190786,0.73116,2734.9,2734.8,42.0537]
[1749735191190,3.2078,2735.5,2734.8,55.32766]
[1749735191490,0.00548206,2735.6,2735.5,0.731]
[1749735192293,0.00548206,2735.6,2735.5,41.531]
[1749735192490,0.00548206,2735.6,2735.5,40.8]
[1749735192689,0.73645206,2735.6,2735.5,40.8]
[1749735193090,0.73101,2735.5,2735.0,1.82781]
[1749735193395,0.73103,2735.4,2735.3,1.2164]
[1749735193590,0.00548206,2735.6,2735.5,0.731]
[1749735193996,0.00548206,2735.6,2735.3,42.0164]
[1749735193997,0.73103,2735.4,2735.3,42.0164]
[1749735194191,3.93883,2735.4,2735.3,40.8]
[1749735194493,0.73116,2734.9,2734.8,1.2164]
[1749735194791,3.93884,2735.4,2735.2,0.73107]
[1749735194994,0.00548206,2735.6,2734.9,6.445]
[1749735195190,0.00548206,2735.6,2735.2,0.73107]
[1749735195191,0.73105,2735.4,2735.2,0.73107]
[1749735195390,0.73102,2735.5,2735.3,2.02095]
[1749735195591,0.00548206,2735.6,2735.3,1.2899]
[1749735196090,0.73103,2735.4,2735.3,1.2899]
[1749735196492,0.73111,2735.1,2735.0,0.6193]
[1749735196794,3.2078,2735.5,2735.0,2.44709]
[1749735196996,0.73108,2735.3,2735.1,1.2899]
[1749735197196,0.73108,2735.2,2735.1,1.2899]
[1749735197592,0.73108,2735.2,2734.8,40.8]
[1749735197593,0.73116,2734.9,2734.8,40.8]
[1749735198091,0.73116,2734.9,2734.8,42.0985]
[1749735198298,0.73116,2734.9,2734.8,40.8]
[1749735198895,0.73127,2734.5,2734.4,0.00548206]
[1749735199298,0.73127,2734.5,2734.4,40.80548206]
[1749735199493,3.2078,2734.6,2734.4,40.80548206]
[1749735199702,0.73109,2735.2,2734.7,1.82805]
[1749735199997,0.44408206,2735.6,2734.8,5.1281]
[1749735200200,1.82751,2735.5,2735.0,0.73112]
[1749735200395,0.44408206,2735.6,2735.2,0.73107]
[1749735200596,0.44408206,2735.6,2735.1,1.2985]
[1749735200597,0.44408206,2735.6,2735.3,2.02954]
[1749735200806,0.44408206,2735.6,2735.3,1.2985]
[1749735201100,6.444,2736.1,2735.3,1.2985]
[1749735201101,0.73077,2736.4,2735.4,49.44415]
[1749735201402,3.2078,2736.5,2736.1,3.93862]
[1749735201403,0.7308,2736.3,2736.1,3.93862]
[1749735201602,0.73079,2736.3,2736.2,1.2792]
[1749735201894,3.2078,2736.5,2736.2,1.2792]
[1749735202101,0.00548206,2736.6,2736.4,3.2078]
[1749735202292,0.00548206,2736.6,2736.5,73.03193]
[1749735202500,0.73619206,2736.6,2736.5,42.0792]
[1749735202701,0.73619206,2736.6,2736.5,72.2942]
[1749735202899,0.73619206,2736.6,2736.5,42.0792]
[1749735203301,0.73619206,2736.6,2736.5,40.8]
[1749735204102,8.94399206,2736.6,2736.5,40.8]
[1749735204305,8.94399206,2736.6,2736.1,0.00548206]
[1749735204306,0.73081,2736.2,2736.1,0.00548206]
[1749735205100,3.21328206,2736.6,2736.1,0.00548206]
[1749735205297,0.73081,2736.3,2736.2,40.8]
[1749735206302,3.21328206,2736.6,2736.2,40.8]
[1749735206503,3.21328206,2736.6,2736.2,41.9744]
[1749735206708,0.73074,2736.5,2736.3,1.90517]
[1749735207097,3.21328206,2736.6,2736.3,24.9424]
[1749735207300,0.3904,2737.2,2736.8,0.73064]
[1749735207497,0.3904,2737.2,2737.1,0.73057]
[1749735207696,3.2078,2737.6,2737.1,0.73057]
[1749735207903,0.73053,2737.3,2737.2,1.2186]
[1749735208097,0.73053,2737.3,2737.2,42.0186]
[1749735208812,0.00365468,2737.5,2737.3,0.73052]
[1749735209108,0.73412468,2737.5,2737.4,1.2186]
[1749735209309,0.00365468,2737.5,2737.4,1.2186]
[1749735209502,3.7927,2737.9,2737.4,25.74209]
[1749735209503,3.2078,2737.9,2737.4,25.74209]
[1749735209699,3.2078,2738.4,2737.7,3.2078]
[1749735210010,0.73021,2738.5,2738.3,0.73024]
[1749735210206,0.73019,2738.6,2738.4,1.234]
[1749735210411,1.31529,2739.0,2738.5,30.433]
[1749735210608,3.2078,2739.2,2738.8,3.2078]
[1749735210809,0.72996,2739.4,2738.9,31.665]
[1749735211113,0.72996,2739.4,2739.2,0.73]
[1749735211302,0.3897,2739.5,2739.4,0.72996]
[1749735211709,0.3897,2739.5,2739.4,8.57996]
[1749735211910,0.3897,2739.5,2739.4,49.37996]
[1749735212107,3.2078,2741.3,2739.4,54.65]
[1749735212308,0.72927,2742.0,2741.6,0.72936]
[1749735212508,3.2078,2742.4,2741.8,3.2078]
[1749735212703,3.2078,2742.4,2741.9,6.616]
[1749735212704,0.07292882,2742.4,2741.9,6.616]
[1749735213008,0.07292882,2742.4,2742.3,0.72919]
[1749735213208,0.07292882,2742.4,2742.3,6.616]
[1749735213407,0.07292882,2742.4,2742.3,7.34519]
[1749735213607,9.8238,2743.3,2742.3,47.416]
[1749735213608,3.2078,2743.3,2742.3,47.416]
[1749735213803,0.07290755,2743.2,2742.6,3.2078]
[1749735214114,0.80186755,2743.2,2742.9,3.2078]
[1749735214314,0.07290755,2743.2,2742.9,3.2078]
[1749735214511,0.07290755,2743.2,2742.9,27.2088]
[1749735214711,6.612,2744.2,2742.9,32.2088]
[1749735214712,3.2078,2744.2,2742.9,32.2088]
[1749735214917,1.8209,2745.5,2742.9,32.2088]
[1749735214918,3.2078,2744.8,2744.1,3.2078]
[1749735215116,1.2469,2745.4,2742.9,24.001]
[1749735215117,0.72865,2744.4,2744.3,3.2078]
[1749735215413,4.4079,2744.7,2744.2,0.00547086]
[1749735215610,0.72866,2744.3,2744.2,8.6e-07]
[1749735216414,5.72866,2744.3,2744.2,8.6e-07]
[1749735216616,7.01586,2744.3,2744.2,8.6e-07]
[1749735217020,13.62386,2744.3,2744.2,8.6e-07]
[1749735217316,7.01586,2744.3,2744.2,8.6e-07]
[1749735217517,13.62386,2744.3,2744.2,8.6e-07]
[1749735218415,7.01586,2744.3,2744.2,8.6e-07]
[1749735218621,13.62386,2744.3,2744.2,8.6e-07]
[1749735219022,0.72866,2744.3,2744.2,8.6e-07]
[1749735219917,3.2078,2744.4,2744.2,8.6e-07]
[1749735219918,3.93644,2744.4,2744.2,8.6e-07]
[1749735220123,0.00543268,2744.5,2744.2,40.80000086]
[1749735220319,0.72866,2744.3,2744.2,40.80000086]
[1749735220923,0.72866,2744.3,2743.4,4.4831]
[1749735220924,0.72887,2743.5,2743.4,4.4831]
[1749735221117,4.4241,2744.2,2743.4,1.2753]
[1749735221325,0.72878,2743.9,2743.6,3.2078]
[1749735221514,3.2078,2744.2,2743.7,4.4831]
[1749735221720,0.72879,2743.9,2743.8,1.2753]
[1749735221917,0.72879,2743.9,2743.8,42.0753]
[1749735222122,0.72879,2743.9,2743.8,40.8]
[1749735222824,0.72879,2743.9,2743.8,42.0012]
[1749735223029,3.2078,2744.2,2743.8,47.0012]
[1749735223332,0.00543268,2744.5,2744.0,3.2078]
[1749735223535,0.00543268,2744.5,2744.4,3.93643]
[1749735223726,0.00543268,2744.5,2744.4,8.93643]
[1749735224029,0.72847,2745.0,2744.7,0.72853]
[1749735224227,3.2078,2745.6,2745.1,0.72843]
[1749735224430,0.72842,2745.2,2745.1,6.878]
[1749735224725,3.2078,2745.6,2745.0,6.878]
[1749735224930,0.72839,2745.3,2745.2,40.8]
[1749735225424,3.2078,2746.0,2745.2,55.8858]
[1749735225630,4.473,2746.5,2745.3,1.82097]
[1749735225833,0.72817,2746.2,2745.8,3.2078]
[1749735226129,3.2078,2746.8,2745.9,8.1182]
[1749735226329,3.2078,2746.8,2746.1,3.2078]
[1749735226530,0.72821,2746.0,2745.9,1.2422]
[1749735226729,0.72837,2745.4,2745.3,8.1182]
[1749735227233,3.2078,2746.0,2745.3,8.1182]
[1749735227433,0.72837,2745.4,2745.3,8.1182]
[1749735227629,0.72839,2745.3,2745.2,40.8]
[1749735227826,3.2078,2745.7,2745.2,40.8]
[1749735228033,0.72836,2745.5,2745.2,42.7706]
[1749735228228,1.2652,2745.9,2745.3,1.1834]
[1749735228431,0.72837,2745.4,2745.3,1.1834]
[1749735228732,0.72842,2745.2,2745.1,3.2078]
[1749735228940,0.72845,2745.1,2745.0,0.00547086]
[1749735229124,0.72843,2745.2,2745.0,0.00547086]
[1749735229322,0.72845,2745.1,2745.0,0.00547086]
[1749735229527,3.2078,2745.5,2745.0,0.00547086]
[1749735229733,3.2078,2745.5,2745.1,3.2078]
[1749735230038,0.72839,2745.3,2745.2,41.9834]
[1749735230328,3.2078,2745.5,2745.2,41.9834]
[1749735230630,0.72839,2745.3,2745.2,40.8]
[1749735230832,0.72845,2745.1,2745.0,0.00547086]
[1749735231932,5.72845,2745.1,2745.0,0.00547086]
[1749735232139,6.92545,2745.1,2745.0,0.00547086]
[1749735232326,1.92545,2745.1,2745.0,0.00547086]
[1749735233038,6.92545,2745.1,2745.0,8.6e-07]
[1749735233837,8.79845,2745.1,2745.0,8.6e-07]
[1749735234234,13.79845,2745.1,2745.0,8.6e-07]
[1749735234631,1.92545,2745.1,2745.0,8.6e-07]
[1749735234832,3.93623,2745.2,2745.0,8.6e-07]
[1749735235135,0.00547086,2745.3,2745.2,0.72842]
[1749735235332,0.00547086,2745.3,2745.2,7.60142]
[1749735235534,3.2078,2746.5,2745.4,1.82086]
[1749735235733,3.2078,2746.5,2746.0,0.7282]
[1749735235932,3.2078,2746.5,2745.9,6.873]
[1749735236133,1.8820472,2746.8,2746.2,3.2078]
[1749735236134,3.2698172,2746.8,2746.2,3.2078]
[1749735236438,0.7281,2746.4,2746.3,1.2014]
[1749735236838,3.2698172,2746.8,2746.3,1.2014]
[1749735237132,0.72806,2746.6,2746.3,1.92952]
[1749735237338,0.72802,2746.7,2746.3,1.92952]
[1749735237539,0.0620172,2746.8,2746.3,1.2014]
[1749735237540,0.7281,2746.4,2746.3,1.2014]
[1749735237735,0.72808,2746.5,2746.3,1.2014]
[1749735237927,0.0620172,2746.8,2746.3,1.2014]
[1749735238328,0.72805,2746.6,2746.4,0.72809]
[1749735238528,0.72807,2746.6,2746.4,0.7281]
[1749735238736,0.0620172,2746.8,2746.3,1.2014]
[1749735238931,3.2078,2746.7,2745.8,3.2078]
[1749735239236,3.2078,2746.7,2745.9,3.2078]
[1749735239433,0.72805,2746.6,2746.3,0.72811]
[1749735239641,3.2078,2746.7,2746.3,1.2125]
[1749735240138,3.2078,2746.7,2746.2,0.72814]
[1749735240139,1.82013,2746.6,2745.8,3.2078]
[1749735240344,3.2078,2746.7,2745.9,8.0939]
[1749735240644,0.72811,2746.4,2745.9,8.0939]
[1749735240843,0.7281,2746.5,2746.3,0.72812]
[1749735241035,0.0620172,2746.8,2746.4,3.2078]
[1749735241242,0.0620172,2746.8,2745.9,1.2229]
[1749735241243,0.0620172,2746.8,2746.3,6.87]
[1749735241446,0.0620172,2746.8,2746.6,0.72803]
[1749735241743,0.0620172,2746.8,2746.4,1.22837086]
[1749735241941,0.72803,2746.7,2746.4,1.22837086]
[1749735242141,0.0620172,2746.8,2746.4,1.22837086]
[1749735242340,0.0620172,2746.8,2746.6,3.2078]
[1749735242536,0.7900272,2746.8,2746.6,0.72803]
[1749735242742,0.7900372,2746.8,2746.7,40.8]
[1749735242943,0.72807,2746.5,2746.4,0.00547086]
[1749735243247,1.1798524,2746.5,2746.4,0.73357086]
[1749735243436,0.0620172,2746.8,2746.7,0.72802]
[1749735243745,3.2078,2747.3,2746.6,3.2078]
[1749735244040,3.2078,2747.3,2746.8,0.72798]
[1749735244041,0.72797,2747.0,2746.8,0.72798]
[1749735244239,0.72797,2747.0,2746.9,1.2814]
[1749735244434,1.90892408,2747.0,2746.9,1.2814]
[1749735244639,1.18095408,2747.0,2746.9,2.00937]
[1749735244946,1.18095408,2747.0,2746.9,8.87837]
[1749735245141,0.0620172,2747.5,2747.4,0.72784]
[1749735245345,1.96991641,2747.5,2747.4,0.5190298]
[1749735245645,1.18008921,2747.5,2747.4,0.51920532]
[1749735245838,2.99967921,2747.5,2746.9,5.21715]
[1749735246041,1.18020386,2747.4,2747.3,0.72784]
[1749735246244,1.18020386,2747.4,2747.3,0.5136862]
[1749735246438,0.72794,2747.0,2746.9,1.2814]
[1749735246642,1.90781308,2747.0,2746.9,2.00937]
[1749735246840,1.81947,2747.6,2746.9,1.2814]
[1749735247136,1.16335647,2747.5,2747.4,0.72784]
[1749735247340,1.16335647,2747.5,2747.4,0.51362568]
[1749735247341,0.72781,2747.5,2747.4,0.51362568]
[1749735247536,0.72783,2747.5,2747.3,7.59585]
[1749735247753,0.7278,2747.6,2747.4,0.51353732]
[1749735247940,3.2078,2747.7,2747.5,6.868]
[1749735248252,0.72776,2747.7,2747.6,1.71773804]
[1749735248543,0.72776,2747.7,2747.6,1.7177572]
[1749735248747,0.72776,2747.7,2747.6,0.50728594]
[1749735249049,0.72776,2747.7,2746.7,3.2078]
[1749735249050,1.81953,2747.5,2746.7,3.2078]
[1749735249245,11.68495,2748.4,2746.7,3.2078]
[1749735249246,4.37379613,2747.4,2746.7,3.2078]
[1749735249444,1.16599613,2747.3,2746.9,3.71535173]
[1749735249640,1.16599613,2747.2,2746.8,40.8]
[1749735249845,0.72807,2746.5,2746.4,1.19307086]
[1749735250045,0.72807,2746.6,2746.4,1.19307086]
[1749735250239,0.72807,2746.5,2746.4,1.19307086]
[1749735250450,1.81993,2746.9,2746.4,1.19307086]
[1749735250643,0.72807,2746.5,2746.4,1.19307086]
[1749735251349,0.72807,2746.5,2746.4,1.92116086]
[1749735251551,0.72807,2746.5,2746.4,6.87247086]
[1749735251746,0.72807,2746.5,2746.4,0.00547086]
[1749735251941,1.89527013,2746.5,2746.4,0.00547086]
[1749735252142,1.89527013,2746.5,2746.4,0.51315838]
[1749735252348,1.16720013,2746.5,2746.4,0.00547086]
[1749735252542,1.16720013,2746.5,2746.4,41.53357086]
[1749735252745,1.16720013,2746.5,2746.4,42.0412131]
[1749735253045,1.89527013,2746.5,2746.4,40.80547086]
[1749735255247,1.16720013,2746.5,2746.4,41.53357086]
[1749735255452,3.2078,2746.7,2746.4,41.53357086]
[1749735255453,0.0620172,2746.8,2746.7,0.72802]
[1749735255854,3.2078,2747.3,2746.8,1.81996]
[1749735256152,1.16697105,2747.2,2747.1,0.72789]
[1749735256453,3.2078,2748.0,2747.2,1.81973]
[1749735256656,1.81933,2747.8,2747.3,31.31]
[1749735256852,0.72781,2747.5,2747.4,1.1946]
[1749735257050,1.89437289,2747.5,2747.4,1.1946]
[1749735257249,1.89437289,2747.5,2747.4,1.92244]
[1749735257449,1.89437289,2747.5,2747.4,1.1946]
[1749735258054,0.72786,2747.3,2747.2,3.2078]
[1749735258249,1.1688653,2747.3,2747.2,35.6964]
[1749735258448,5.02704,2748.0,2747.2,35.6964]
[1749735258647,1.16875427,2747.9,2747.2,35.6964]
[1749735258850,1.16875427,2747.8,2747.2,35.6964]
[1749735259053,0.72786,2747.3,2747.2,35.6874]
[1749735259354,0.72789,2747.2,2747.1,40.8]
[1749735259557,1.89664427,2747.2,2747.1,40.8]
[1749735260554,1.81986,2747.0,2746.5,0.72806]
[1749735260755,1.16875427,2746.9,2746.4,31.29747086]
[1749735260956,1.89675427,2746.8,2746.6,0.72802]
[1749735261157,0.7279,2747.2,2746.7,1.1896]
[1749735261354,1.18535558,2747.1,2747.0,0.72792]
[1749735261556,1.18535558,2747.1,2747.0,42.73792]
[1749735261752,0.7897972,2747.6,2747.4,0.72781]
[1749735261959,0.0620172,2747.6,2747.5,0.72781]
[1749735262255,0.0620172,2747.6,2747.5,1.93781]
[1749735262859,0.0620172,2747.6,2747.5,1.9378]
[1749735263055,0.0620172,2747.6,2747.5,42.7378]
[1749735263352,0.0620172,2747.6,2747.5,42.73781]
[1749735263753,0.7897972,2747.6,2747.5,42.01]
[1749735263954,0.7897972,2747.6,2747.5,40.8]
[1749735265752,6.8815172,2747.6,2746.8,3.2078]
[1749735265954,1.81968,2747.3,2746.8,3.93578]
[1749735266148,0.72797,2746.9,2746.8,3.2078]
[1749735266762,3.01356,2747.3,2746.8,44.73579]
[1749735266956,3.01356,2747.3,2746.8,44.0078]
[1749735267259,4.09121346,2747.3,2746.8,44.0078]
[1749735267457,6.10511346,2747.4,2746.9,0.72796]
[1749735267660,0.72795,2747.0,2746.9,1.2813]
[1749735267958,0.72797,2746.9,2746.8,44.0078]
[1749735268462,0.72797,2746.9,2746.8,40.8]
[1749735272363,0.72807,2746.5,2746.4,0.00547086]
[1749735272553,3.93587,2746.5,2746.4,8.6e-07]
[1749735272859,8.93587,2746.5,2746.4,8.6e-07]
[1749735273065,10.17877,2746.5,2746.4,8.6e-07]
[1749735273563,1.97097,2746.5,2746.4,8.6e-07]
[1749735273758,8.16360865,2746.5,2746.4,8.6e-07]
[1749735274559,0.72823,2745.9,2745.8,40.8]
[1749735275665,6.91975192,2745.9,2745.8,40.8]
[1749735276361,0.72829,2745.7,2745.6,0.0054608]
[1749735276861,0.72829,2745.7,2745.6,40.8054608]
[1749735277563,0.72829,2745.7,2745.6,44.0132608]
[1749735277759,12.01526,2746.1,2745.6,45.9341608]
[1749735277760,0.72827,2745.8,2745.6,45.9341608]
[1749735277961,1.82042,2746.2,2745.7,1.1926]
[1749735278165,0.72822,2746.0,2745.8,0.72824]
[1749735278366,0.72829,2745.7,2745.6,44.0132608]
[1749735278871,5.72829,2745.7,2745.6,0.0054608]
[1749735279063,12.71529,2745.7,2745.6,0.0054608]
[1749735279665,8.98329,2745.7,2745.6,0.0054608]
[1749735279856,9.27617255,2745.7,2745.6,0.0054608]
[1749735280061,14.27617255,2745.7,2745.6,8e-07]
[1749735280361,14.27617255,2745.7,2744.7,3.2078]
[1749735280362,0.72852,2744.8,2744.7,3.2078]
[1749735280556,0.72852,2744.8,2744.7,44.0078]
[1749735281665,0.72852,2744.8,2744.7,40.8]
[1749735281866,0.72858,2744.6,2744.5,0.0054608]
[1749735282465,0.72858,2744.6,2744.5,40.8054608]
[1749735282667,0.72858,2744.6,2744.5,0.0054608]
[1749735282869,5.72858,2744.6,2744.5,8e-07]
[1749735283058,0.72887,2743.5,2743.3,3.2078]
[1749735283265,0.72887,2743.5,2743.4,0.07290223]
[1749735283459,6.989,2744.1,2743.4,0.07290223]
[1749735283460,3.2078,2744.1,2743.4,0.07290223]
[1749735283670,0.72887,2743.5,2743.4,1.36040223]
[1749735284264,0.0054608,2743.7,2743.4,1.36040223]
[1749735284464,0.72887,2743.5,2743.4,0.07290223]
[1749735285465,0.0054608,2743.7,2743.4,0.07290223]
[1749735285667,0.72887,2743.5,2743.4,0.07290223]
[1749735286376,0.436,2743.5,2743.4,0.07290223]
[1749735286672,1.16487,2743.5,2743.4,40.87290223]
[1749735287368,1.16487,2743.5,2743.4,0.07290223]
[1749735287369,4.37267,2743.5,2743.4,0.07290223]
[1749735287564,1.16487,2743.5,2743.4,0.07290223]
[1749735287966,1.16487,2743.5,2743.4,40.87290223]
[1749735289465,0.436,2743.5,2743.4,41.60180223]
[1749735289768,0.436,2743.5,2743.4,42.84890223]
[1749735290164,0.436,2743.5,2743.4,42.776]
[1749735290572,0.7309608,2743.7,2743.6,0.72884]
[1749735290767,27.05737,2744.5,2744.1,0.7287]
[1749735290768,3.2078,2744.5,2744.1,0.7287]
[1749735290967,3.2078,2744.5,2743.7,1.82201]
[1749735290968,0.72876,2744.0,2743.8,3.93657]
[1749735291272,0.7287,2744.2,2743.9,0.72876]
[1749735291466,1.82145,2744.6,2744.1,3.2078]
[1749735291667,0.72866,2744.3,2744.2,1.2471]
[1749735292073,0.0054608,2744.5,2744.2,1.2471]
[1749735292370,0.72863,2744.4,2744.2,1.97577]
[1749735292565,0.72868,2744.2,2744.1,3.2078]
[1749735292765,0.72876,2743.9,2743.8,8.1515]
[1749735292963,5.0348308,2744.5,2743.8,1.92727]
[1749735292964,0.72874,2744.1,2743.8,1.92727]
[1749735293165,0.72876,2743.9,2743.8,1.1985]
[1749735293365,0.72875,2744.0,2743.8,1.1985]
[1749735293574,0.72875,2744.0,2743.8,1.92729]
[1749735293969,0.72872,2744.1,2743.9,0.72874]
[1749735294272,0.0054608,2744.5,2744.0,4.4063]
[1749735294472,0.72863,2744.4,2744.2,0.72867]
[1749735294672,1.45373,2744.4,2744.3,1.1985]
[1749735294970,0.7251,2744.4,2744.0,3.2078]
[1749735295162,0.72871,2744.1,2744.0,3.2078]
[1749735295369,0.7251,2744.4,2743.7,4.4309]
[1749735295568,0.72868,2744.3,2744.0,3.93653]
[1749735295767,0.7251,2744.4,2744.1,1.2231]
[1749735295971,0.72868,2744.2,2744.1,1.2231]
[1749735296374,0.7906872,2744.3,2744.1,1.9518]
[1749735296573,0.7906872,2744.3,2744.2,1.2231]
[1749735296768,0.72871,2744.1,2744.0,3.2078]
[1749735297074,0.0620172,2744.3,2743.7,3.2078]
[1749735297275,0.0620172,2744.3,2744.0,3.2078]
[1749735297567,0.7251,2744.4,2744.3,0.72866]
[1749735297774,0.7251,2744.4,2744.3,3.93646]
[1749735297971,0.7251,2744.4,2744.3,44.73646]
[1749735298174,3.2078,2745.4,2745.0,0.72845]
[1749735298367,0.72841,2745.3,2745.1,0.72845]
[1749735298569,9.06593166,2745.7,2745.1,3.2078]
[1749735298772,0.72841,2745.3,2745.2,1.1785]
[1749735299372,0.00543733,2745.5,2745.2,1.1785]
[1749735299773,0.72838,2745.4,2745.2,1.90691]
[1749735300071,0.72838,2745.4,2745.0,0.0054608]
[1749735300072,0.72837,2745.4,2745.3,1.1785]
[1749735300575,0.00543733,2745.5,2745.3,1.1785]
[1749735300769,0.00543733,2745.5,2745.4,0.72837]
[1749735300969,3.2078,2746.5,2745.5,1.82084]
[1749735301176,3.2078,2746.5,2745.4,0.584]
[1749735301177,1.19312264,2746.4,2745.8,3.2078]
[1749735301382,0.72814,2746.3,2746.0,0.72819]
[1749735301573,0.72815,2746.2,2746.1,1.1729]
[1749735301773,0.72821,2746.0,2745.9,40.8]
[1749735302072,1.81984,2747.1,2746.2,0.72814]
[1749735302276,1.81973,2747.2,2746.5,3.2078]
[1749735302471,0.72805,2746.6,2746.5,3.2078]
[1749735302776,1.81992,2747.0,2746.4,3.2132608]
[1749735302978,0.72806,2746.6,2746.4,3.2132608]
[1749735303179,0.72807,2746.5,2746.4,3.2132608]
[1749735303587,0.6415,2747.2,2746.4,3.2132608]
[1749735303782,0.72805,2746.6,2746.5,4.3807]
[1749735304081,0.72807,2746.5,2746.4,0.0054608]
[1749735304277,1.91267,2746.5,2746.4,0.0054608]
[1749735304670,0.72807,2746.5,2746.4,0.0054608]
[1749735305071,3.2078,2746.7,2746.4,0.0054608]
[1749735305275,3.93584,2746.7,2746.4,1.9889508]
[1749735305577,0.72801,2746.8,2746.5,0.72807]
[1749735305774,0.6415,2747.2,2746.8,0.72799]
[1749735305980,7.5494,2747.5,2746.9,3.2078]
[1749735306175,10.7572,2747.5,2746.5,3.8189]